fUST/lending_fUST_20241016
["ID","MTS","AMOUNT","RATE_DAILY","PERIOD"]
[340299159,1729009847729,-151.0,0.00028999,7]
[340299160,1729009847738,-1167.796912,0.00028999,7]
[340299161,1729009847748,-224.961139,0.00028999,7]
[340299162,1729009847757,-1167.796912,0.00028999,7]
[340299163,1729009847766,-151.0,0.00028999,7]
[340299164,1729009847775,-235.481456,0.00028999,7]
[340299165,1729009847784,-235.481456,0.00028999,7]
[340299166,1729009847793,-1335.689447,0.00028999,7]
[340299167,1729009847802,-1335.689447,0.00028999,7]
[340299168,1729009847811,-151.0,0.00028999,7]
[340299169,1729009847820,-1036.36557,0.00028999,7]
[340299170,1729009847829,-1036.36557,0.00028999,7]
[340299171,1729009847838,-151.0,0.00028999,7]
[340299172,1729009847849,-2746.074301,0.00028999,7]
[340299173,1729009847858,-2746.074301,0.00028999,7]
[340299174,1729009847867,-2746.074301,0.00028999,7]
[340299175,1729009847877,-2746.074301,0.00028999,7]
[340299176,1729009847887,-32100.0,0.00029,2]
[340299177,1729009847896,-1000.0,0.00029,120]
[340299178,1729009847905,-562.487694,0.00029,7]
[340299179,1729009847915,-562.487694,0.00029,7]
[340299180,1729009847924,-181.304124,0.00029,7]
[340299181,1729009847933,-151.0,0.00029,7]
[340299182,1729009847942,-430.041762,0.00029,7]
[340299183,1729009847952,-430.041762,0.00029,7]
[340299184,1729009847962,-187.535718,0.00029,7]
[340299185,1729009847971,-187.535718,0.00029,7]
[340299186,1729009847981,-172.094316,0.00029,7]
[340299187,1729009847990,-172.094316,0.00029,7]
[340299188,1729009847999,-151.0,0.00029,7]
[340299189,1729009848008,-151.0,0.00029,7]
[340299190,1729009848018,-230.465031,0.00029,7]
[340299191,1729009848028,-230.465031,0.00029,7]
[340299192,1729009848037,-151.0,0.00029,7]
[340299193,1729009848046,-151.0,0.00029,7]
[340299194,1729009848055,-151.0,0.00029,7]
[340299195,1729009848065,-151.0,0.00029,7]
[340299196,1729009848074,-526.104729,0.00029,7]
[340299197,1729009848083,-526.104729,0.00029,7]
[340299198,1729009848093,-297.87782,0.00029,7]
[340299199,1729009848102,-297.87782,0.00029,7]
[340299200,1729009848117,-2107.876471,0.00029,7]
[340299201,1729009848127,-1249.581355,0.00029,7]
[340299202,1729009848136,-2107.876471,0.00029,7]
[340299203,1729009848145,-1249.581355,0.00029,7]
[340299204,1729009848155,-601.864744,0.00029,7]
[340299205,1729009848165,-601.864744,0.00029,7]
[340299206,1729009848174,-2760.074245,0.00029,7]
[340299207,1729009848184,-2760.074245,0.00029,7]
[340299208,1729009848193,-279.72441,0.00029,7]
[340299209,1729009848203,-279.72441,0.00029,7]
[340299210,1729009848212,-151.738794,0.00029,7]
[340299211,1729009848222,-177.450328,0.00029,7]
[340299212,1729009848231,-177.450328,0.00029,7]
[340299213,1729009848240,-151.0,0.00029,7]
[340299214,1729009848250,-151.0,0.00029,7]
[340299215,1729009848259,-151.0,0.00029,7]
[340299216,1729009848268,-2027.716214,0.00029,7]
[340299217,1729009848279,-1608.210629,0.00029,7]
[340299218,1729009848288,-2027.716214,0.00029,7]
[340299219,1729009848297,-189.424199,0.00029,7]
[340299220,1729009848306,-1608.210629,0.00029,7]
[340299221,1729009848316,-150.112233,0.00029,7]
[340299222,1729009848325,-150.112233,0.00029,7]
[340299223,1729009848335,-150.112233,0.00029,7]
[340299224,1729009848346,-150.112235,0.00029,6]
[340299225,1729009848355,-2285.202816,0.00029,7]
[340299226,1729009848365,-2285.202816,0.00029,7]
[340299227,1729009848375,-151.0,0.00029,7]
[340299228,1729009848385,-223.01979,0.00029,7]
[340299229,1729009848394,-2458.926106,0.00029,7]
[340299230,1729009848403,-2458.926106,0.00029,7]
[340299231,1729009848413,-385.508593,0.00029,7]
[340299232,1729009848422,-151.0,0.00029,7]
[340299233,1729009848431,-385.508593,0.00029,7]
[340299234,1729009848440,-1398.491753,0.00029,7]
[340299235,1729009848449,-1398.491753,0.00029,7]
[340299236,1729009848458,-151.0,0.00029,7]
[340299237,1729009848468,-166.453614,0.00029,7]
[340299238,1729009848478,-166.453614,0.00029,7]
[340299239,1729009848487,-218.296649,0.00029,7]
[340299240,1729009848496,-218.296649,0.00029,7]
[340299241,1729009848505,-151.0,0.00029,3]
[340299242,1729009848515,-187.610453,0.00029,7]
[340299243,1729009848524,-187.610453,0.00029,7]
[340299244,1729009848533,-151.0,0.00029,7]
[340299245,1729009848542,-152.623124,0.00029,7]
[340299246,1729009848552,-3145.416485,0.00029,7]
[340299247,1729009848561,-3145.416485,0.00029,7]
[340299248,1729009848571,-769.111802,0.00029,7]
[340299249,1729009848580,-769.111802,0.00029,7]
[340299250,1729009848590,-151.0,0.00029,7]
[340299251,1729009848602,-327.267807,0.00029,7]
[340299252,1729009848612,-327.267807,0.00029,7]
[340299253,1729009848622,-151.0,0.00029,7]
[340299254,1729009848631,-151.0,0.00029,7]
[340299255,1729009848641,-674.608576,0.00029,7]
[340299256,1729009848650,-697.089102,0.00029,7]
[340299257,1729009848660,-674.608576,0.00029,7]
[340299258,1729009848670,-790.509405,0.00029,7]
[340299259,1729009848679,-151.0,0.00029,7]
[340299260,1729009848786,-697.089102,0.00029,7]
[340299261,1729009848796,-790.509405,0.00029,7]
[340299262,1729009848805,-2139.620831,0.00029,7]
[340299263,1729009848815,-2139.620831,0.00029,7]
[340299264,1729009848824,-151.0,0.00029,7]
[340299265,1729009848833,-150.112233,0.00029,8]
[340299266,1729009848844,-1167.796912,0.00029,7]
[340299267,1729009848854,-1167.796912,0.00029,7]
[340299268,1729009848863,-1167.796912,0.00029,7]
[340299269,1729009848872,-1167.796912,0.00029,7]
[340299270,1729009848882,-151.0,0.00029,7]
[340299271,1729009848891,-151.0,0.00029,7]
[340299272,1729009848900,-18051.0677769,0.00029,30]
[340299273,1729009848909,-235.481456,0.00029,7]
[340299274,1729009848919,-235.481456,0.00029,7]
[340299275,1729009848929,-235.481456,0.00029,7]
[340299276,1729009848939,-235.481456,0.00029,7]
[340299277,1729009848949,-1335.689447,0.00029,7]
[340299278,1729009848959,-1335.689447,0.00029,7]
[340299279,1729009848968,-1335.689447,0.00029,7]
[340299280,1729009848978,-1335.689447,0.00029,7]
[340299281,1729009848988,-208.080474,0.00029,7]
[340299282,1729009848997,-1036.36557,0.00029,7]
[340299283,1729009849007,-1036.36557,0.00029,7]
[340299284,1729009849016,-1036.36557,0.00029,7]
[340299285,1729009849025,-1036.36557,0.00029,7]
[340299286,1729009849035,-151.0,0.00029,7]
[340299287,1729009849044,-151.0,0.00029,7]
[340299288,1729009849054,-2746.074301,0.00029,7]
[340299289,1729009849064,-2746.074301,0.00029,7]
[340299290,1729009849073,-187.535718,0.00029007,7]
[340299291,1729009849082,-187.535718,0.00029007,7]
[340299292,1729009849094,-172.094316,0.00029007,7]
[340299293,1729009849104,-151.0,0.00029007,7]
[340299294,1729009849116,-172.094316,0.00029007,7]
[340299295,1729009849125,-334.927201,0.00029007,7]
[340299296,1729009849135,-334.927201,0.00029007,7]
[340299297,1729009849144,-151.0,0.00029007,7]
[340299298,1729009849154,-151.0,0.00029007,7]
[340299299,1729009849163,-360.515677,0.00029007,7]
[340299300,1729009849172,-360.515677,0.00029007,7]
[340299301,1729009849181,-151.0,0.00029007,7]
[340299302,1729009849192,-1608.210629,0.00029007,7]
[340299303,1729009849202,-1608.210629,0.00029007,7]
[340299304,1729009849211,-2285.202816,0.00029007,7]
[340299305,1729009849220,-2285.202816,0.00029007,7]
[340299306,1729009849230,-151.0,0.00029007,7]
[340299307,1729009849240,-166.453614,0.00029007,7]
[340299308,1729009849250,-166.453614,0.00029007,7]
[340299309,1729009849260,-151.0,0.00029007,7]
[340299310,1729009849269,-151.0,0.00029007,7]
[340299311,1729009849279,-151.0,0.00029007,7]
[340299312,1729009849288,-697.089102,0.00029007,7]
[340299313,1729009849298,-790.509405,0.00029007,7]
[340299314,1729009849307,-151.0,0.00029007,7]
[340299315,1729009849316,-697.089102,0.00029007,7]
[340299316,1729009849326,-790.509405,0.00029007,7]
[340299317,1729009849336,-160.0,0.00029007,10]
[340299318,1729009849348,-2139.620831,0.00029007,7]
[340299319,1729009849357,-2139.620831,0.00029007,7]
[340299320,1729009849367,-430.041762,0.00029008,7]
[340299321,1729009849376,-430.041762,0.00029008,7]
[340299322,1729009849386,-151.0,0.00029008,7]
[340299323,1729009849395,-151.0,0.00029008,7]
[340299324,1729009849404,-151.0,0.00029008,7]
[340299325,1729009849415,-151.0,0.00029008,7]
[340299326,1729009849424,-526.104729,0.00029008,7]
[340299327,1729009849434,-526.104729,0.00029008,7]
[340299328,1729009849444,-297.87782,0.00029008,7]
[340299329,1729009849454,-297.87782,0.00029008,7]
[340299330,1729009849462,-1249.581355,0.00029008,7]
[340299331,1729009849472,-2107.876471,0.00029008,7]
[340299332,1729009849483,-2107.876471,0.00029008,7]
[340299333,1729009849492,-1249.581355,0.00029008,7]
[340299334,1729009849502,-601.864744,0.00029008,7]
[340299335,1729009849512,-601.864744,0.00029008,7]
[340299336,1729009849521,-601.864744,0.00029008,7]
[340299337,1729009849531,-601.864744,0.00029008,7]
[340299338,1729009849541,-2760.074245,0.00029008,7]
[340299339,1729009849550,-2760.074245,0.00029008,7]
[340299340,1729009849560,-279.72441,0.00029008,7]
[340299341,1729009849570,-279.72441,0.00029008,7]
[340299342,1729009849579,-279.72441,0.00029008,7]
[340299343,1729009849588,-279.72441,0.00029008,7]
[340299344,1729009849600,-177.450328,0.00029008,7]
[340299345,1729009849610,-177.450328,0.00029008,7]
[340299346,1729009849620,-177.450328,0.00029008,7]
[340299347,1729009849629,-177.450328,0.00029008,7]
[340299348,1729009849639,-151.0,0.00029008,7]
[340299349,1729009849649,-151.0,0.00029008,7]
[340299350,1729009849658,-151.0,0.00029008,7]
[340299351,1729009849667,-182.638024,0.00029008,7]
[340299352,1729009849677,-2027.716214,0.00029008,7]
[340299353,1729009849687,-151.0,0.00029008,7]
[340299354,1729009849696,-2027.716214,0.00029008,7]
[340299355,1729009849706,-1608.210629,0.00029008,7]
[340299356,1729009849716,-2027.716214,0.00029008,7]
[340299357,1729009849725,-2027.716214,0.00029008,7]
[340299358,1729009849734,-1608.210629,0.00029008,7]
[340299359,1729009849744,-2285.202816,0.00029008,7]
[340299360,1729009849753,-2285.202816,0.00029008,7]
[340299361,1729009849762,-151.0,0.00029008,7]
[340299362,1729009849771,-2458.926106,0.00029008,7]
[340299363,1729009849780,-2458.926106,0.00029008,7]
[340299364,1729009849789,-2458.926106,0.00029008,7]
[340299365,1729009849798,-2458.926106,0.00029008,7]
[340299366,1729009849807,-385.508593,0.00029008,7]
[340299367,1729009849817,-385.508593,0.00029008,7]
[340299368,1729009849826,-151.0,0.00029008,7]
[340299369,1729009849835,-151.0,0.00029008,7]
[340299370,1729009849846,-385.508593,0.00029008,7]
[340299371,1729009849856,-385.508593,0.00029008,7]
[340299372,1729009849865,-1398.491753,0.00029008,7]
[340299373,1729009849874,-1398.491753,0.00029008,7]
[340299374,1729009849883,-1398.491753,0.00029008,7]
[340299375,1729009849892,-1398.491753,0.00029008,7]
[340299376,1729009849901,-151.0,0.00029008,7]
[340299377,1729009849910,-151.0,0.00029008,7]
[340299378,1729009849920,-166.453614,0.00029008,7]
[340299379,1729009849929,-166.453614,0.00029008,7]
[340299380,1729009849938,-218.296649,0.00029008,7]
[340299381,1729009849947,-218.296649,0.00029008,7]
[340299382,1729009849956,-218.296649,0.00029008,7]
[340299383,1729009849965,-218.296649,0.00029008,7]
[340299384,1729009849975,-151.0,0.00029008,3]
[340299385,1729009849983,-151.0,0.00029008,3]
[340299386,1729009849993,-187.610453,0.00029008,7]
[340299387,1729009850002,-187.610453,0.00029008,7]
[340299388,1729009850011,-187.610453,0.00029008,7]
[340299389,1729009850021,-187.610453,0.00029008,7]
[340299390,1729009850032,-151.0,0.00029008,7]
[340299391,1729009850041,-3145.416485,0.00029008,7]
[340299392,1729009850051,-3145.416485,0.00029008,7]
[340299393,1729009850060,-3145.416485,0.00029008,7]
[340299394,1729009850069,-3145.416485,0.00029008,7]
[340299395,1729009850079,-769.111802,0.00029008,7]
[340299396,1729009850089,-769.111802,0.00029008,7]
[340299397,1729009850099,-769.111802,0.00029008,7]
[340299398,1729009850109,-769.111802,0.00029008,7]
[340299399,1729009850120,-232.357353,0.00029008,7]
[340299400,1729009850130,-327.267807,0.00029008,7]
[340299401,1729009850139,-327.267807,0.00029008,7]
[340299402,1729009850148,-327.267807,0.00029008,7]
[340299403,1729009850158,-327.267807,0.00029008,7]
[340299404,1729009850167,-220.101319,0.00029008,7]
[340299405,1729009850176,-151.0,0.00029008,7]
[340299406,1729009850186,-151.0,0.00029008,7]
[340299407,1729009850196,-674.608576,0.00029008,7]
[340299408,1729009850206,-674.608576,0.00029008,7]
[340299409,1729009850216,-697.089102,0.00029008,7]
[340299410,1729009850225,-674.608576,0.00029008,7]
[340299411,1729009850234,-674.608576,0.00029008,7]
[340299412,1729009850243,-790.509405,0.00029008,7]
[340299413,1729009850253,-151.0,0.00029008,7]
[340299414,1729009850262,-697.089102,0.00029008,7]
[340299415,1729009850271,-790.509405,0.00029008,7]
[340299416,1729009850280,-161.27001802,0.00029008,10]
[340299417,1729009850289,-2139.620831,0.00029008,7]
[340299418,1729009850299,-2139.620831,0.00029008,7]
[340299419,1729009850308,-1167.796912,0.00029008,7]
[340299420,1729009850317,-1167.796912,0.00029008,7]
[340299421,1729009850327,-1167.796912,0.00029008,7]
[340299422,1729009850337,-1167.796912,0.00029008,7]
[340299423,1729009850348,-152.239621,0.00029008,7]
[340299424,1729009850358,-235.481456,0.00029008,7]
[340299425,1729009850367,-235.481456,0.00029008,7]
[340299426,1729009850376,-235.481456,0.00029008,7]
[340299427,1729009850386,-235.481456,0.00029008,7]
[340299428,1729009850396,-1335.689447,0.00029008,7]
[340299429,1729009850488,-1335.689447,0.00029008,7]
[340299430,1729009850498,-1335.689447,0.00029008,7]
[340299431,1729009850508,-1335.689447,0.00029008,7]
[340299432,1729009850518,-1036.36557,0.00029008,7]
[340299433,1729009850527,-1036.36557,0.00029008,7]
[340299434,1729009850537,-1036.36557,0.00029008,7]
[340299435,1729009850545,-1036.36557,0.00029008,7]
[340299436,1729009850555,-151.0,0.00029008,7]
[340299437,1729009850564,-151.0,0.00029008,7]
[340299438,1729009850573,-2746.074301,0.00029008,7]
[340299439,1729009850582,-2746.074301,0.00029008,7]
[340299440,1729009850591,-2746.074301,0.00029008,7]
[340299441,1729009850601,-2746.074301,0.00029008,7]
[340299442,1729009850611,-151.0,0.00029009,7]
[340299443,1729009850621,-562.487694,0.00029009,7]
[340299444,1729009850631,-562.487694,0.00029009,7]
[340299445,1729009850640,-151.0,0.00029009,7]
[340299446,1729009850649,-151.0,0.00029009,7]
[340299447,1729009850659,-151.0,0.00029009,7]
[340299448,1729009850668,-151.0,0.00029009,7]
[340299449,1729009850677,-181.304124,0.00029009,7]
[340299450,1729009850687,-151.0,0.00029009,7]
[340299451,1729009850695,-430.041762,0.00029009,7]
[340299452,1729009850704,-430.041762,0.00029009,7]
[340299453,1729009850714,-187.535718,0.00029009,7]
[340299454,1729009850723,-187.535718,0.00029009,7]
[340299455,1729009850732,-172.094316,0.00029009,7]
[340299456,1729009850741,-172.094316,0.00029009,7]
[340299457,1729009850750,-334.927201,0.00029009,7]
[340299458,1729009850759,-334.927201,0.00029009,7]
[340299459,1729009850769,-151.0,0.00029009,7]
[340299460,1729009850779,-151.0,0.00029009,7]
[340299461,1729009850788,-151.0,0.00029009,7]
[340299462,1729009850797,-299.659879,0.00029009,7]
[340299463,1729009850806,-151.0,0.00029009,7]
[340299464,1729009850815,-151.0,0.00029009,7]
[340299465,1729009850824,-151.0,0.00029009,7]
[340299466,1729009850834,-360.515677,0.00029009,7]
[340299467,1729009850843,-360.515677,0.00029009,7]
[340299468,1729009850853,-230.465031,0.00029009,7]
[340299469,1729009850862,-230.465031,0.00029009,7]
[340299470,1729009850871,-230.465031,0.00029009,7]
[340299471,1729009850880,-151.0,0.00029009,7]
[340299472,1729009850890,-151.0,0.00029009,7]
[340299473,1729009850899,-230.465031,0.00029009,7]
[340299474,1729009850910,-151.0,0.00029009,7]
[340299475,1729009850919,-223.953263,0.00029009,7]
[340299476,1729009850929,-151.0,0.00029009,7]
[340299477,1729009850939,-151.0,0.00029009,7]
[340299478,1729009850948,-526.104729,0.00029009,7]
[340299479,1729009850958,-526.104729,0.00029009,7]
[340299480,1729009850968,-297.87782,0.00029009,7]
[340299481,1729009850977,-297.87782,0.00029009,7]
[340299482,1729009850987,-151.0,0.00029009,7]
[340299483,1729009850996,-151.0,0.00029009,7]
[340299484,1729009851005,-1249.581355,0.00029009,7]
[340299485,1729009851015,-2107.876471,0.00029009,7]
[340299486,1729009851025,-2107.876471,0.00029009,7]
[340299487,1729009851034,-1249.581355,0.00029009,7]
[340299488,1729009851043,-601.864744,0.00029009,7]
[340299489,1729009851052,-601.864744,0.00029009,7]
[340299490,1729009851061,-2760.074245,0.00029009,7]
[340299491,1729009851071,-2760.074245,0.00029009,7]
[340299492,1729009851080,-279.72441,0.00029009,7]
[340299493,1729009851090,-279.72441,0.00029009,7]
[340299494,1729009851101,-177.450328,0.00029009,7]
[340299495,1729009851113,-177.450328,0.00029009,7]
[340299496,1729009851124,-151.0,0.00029009,7]
[340299497,1729009851133,-2027.716214,0.00029009,7]
[340299498,1729009851143,-151.0,0.00029009,7]
[340299499,1729009851153,-151.0,0.00029009,7]
[340299500,1729009851163,-1608.210629,0.00029009,7]
[340299501,1729009851172,-1608.210629,0.00029009,7]
[340299502,1729009851182,-2027.716214,0.00029009,7]
[340299503,1729009851192,-1608.210629,0.00029009,7]
[340299504,1729009851201,-1608.210629,0.00029009,7]
[340299505,1729009851210,-2285.202816,0.00029009,7]
[340299506,1729009851219,-2285.202816,0.00029009,7]
[340299507,1729009851229,-2285.202816,0.00029009,7]
[340299508,1729009851238,-2285.202816,0.00029009,7]
[340299509,1729009851247,-151.0,0.00029009,7]
[340299510,1729009851257,-151.0,0.00029009,7]
[340299511,1729009851266,-2458.926106,0.00029009,7]
[340299512,1729009851276,-2458.926106,0.00029009,7]
[340299513,1729009851285,-385.508593,0.00029009,7]
[340299514,1729009851295,-151.0,0.00029009,7]
[340299515,1729009851304,-151.0,0.00029009,7]
[340299516,1729009851313,-385.508593,0.00029009,7]
[340299517,1729009851322,-1398.491753,0.00029009,7]
[340299518,1729009851343,-1398.491753,0.00029009,7]
[340299519,1729009851354,-1398.491753,0.00029009,7]
[340299520,1729009851364,-1398.491753,0.00029009,7]
[340299521,1729009851373,-151.0,0.00029009,7]
[340299522,1729009851383,-166.453614,0.00029009,7]
[340299523,1729009851393,-151.0,0.00029009,7]
[340299524,1729009851402,-166.453614,0.00029009,7]
[340299525,1729009851412,-166.453614,0.00029009,7]
[340299526,1729009851422,-166.453614,0.00029009,7]
[340299527,1729009851432,-218.296649,0.00029009,7]
[340299528,1729009851441,-218.296649,0.00029009,7]
[340299529,1729009851451,-218.296649,0.00029009,7]
[340299530,1729009851460,-218.296649,0.00029009,7]
[340299531,1729009851470,-151.0,0.00029009,3]
[340299532,1729009851480,-187.610453,0.00029009,7]
[340299533,1729009851489,-187.610453,0.00029009,7]
[340299534,1729009851499,-187.610453,0.00029009,7]
[340299535,1729009851508,-187.610453,0.00029009,7]
[340299536,1729009851518,-151.0,0.00029009,7]
[340299537,1729009851527,-151.0,0.00029009,7]
[340299538,1729009851537,-3145.416485,0.00029009,7]
[340299539,1729009851548,-3145.416485,0.00029009,7]
[340299540,1729009851559,-769.111802,0.00029009,7]
[340299541,1729009851568,-769.111802,0.00029009,7]
[340299542,1729009851578,-769.111802,0.00029009,7]
[340299543,1729009851588,-769.111802,0.00029009,7]
[340299544,1729009851602,-327.267807,0.00029009,7]
[340299545,1729009851612,-327.267807,0.00029009,7]
[340299546,1729009851625,-151.0,0.00029009,7]
[340299547,1729009851635,-151.0,0.00029009,7]
[340299548,1729009851644,-674.608576,0.00029009,7]
[340299549,1729009851654,-674.608576,0.00029009,7]
[340299550,1729009851663,-697.089102,0.00029009,7]
[340299551,1729009851673,-697.089102,0.00029009,7]
[340299552,1729009851684,-674.608576,0.00029009,7]
[340299553,1729009851693,-674.608576,0.00029009,7]
[340299554,1729009851704,-790.509405,0.00029009,7]
[340299555,1729009851714,-790.509405,0.00029009,7]
[340299556,1729009851724,-152.760552,0.00029009,7]
[340299557,1729009851733,-697.089102,0.00029009,7]
[340299558,1729009851743,-697.089102,0.00029009,7]
[340299559,1729009851753,-790.509405,0.00029009,7]
[340299560,1729009851762,-790.509401,0.00029009,7]
[340299561,1729009851772,-2139.620831,0.00029009,7]
[340299562,1729009851781,-2139.620831,0.00029009,7]
[340299563,1729009851790,-2139.620831,0.00029009,7]
[340299564,1729009851800,-2139.62084,0.00029009,7]
[340299565,1729009851810,-1167.796912,0.00029009,7]
[340299566,1729009851820,-1167.796912,0.00029009,7]
[340299567,1729009851830,-235.481456,0.00029009,7]
[340299568,1729009851840,-235.481464,0.00029009,7]
[340299569,1729009851853,-1335.689447,0.00029009,7]
[340299570,1729009851862,-1335.689439,0.00029009,7]
[340299571,1729009851871,-1036.36557,0.00029009,7]
[340299572,1729009851880,-1036.365575,0.00029009,7]
[340299573,1729009851889,-151.0,0.00029009,7]
[340299574,1729009851898,-2746.074301,0.00029009,7]
[340299575,1729009851908,-2746.074303,0.00029009,7]
[340299576,1729009851919,-562.487694,0.00029018,7]
[340299577,1729009851929,-562.487694,0.00029018,7]
[340299578,1729009851939,-562.487694,0.00029018,7]
[340299579,1729009851949,-562.487694,0.00029018,7]
[340299580,1729009851959,-151.0,0.00029018,7]
[340299581,1729009851970,-181.304124,0.00029018,7]
[340299582,1729009851986,-201.909061,0.00029018,7]
[340299583,1729009851996,-151.0,0.00029018,7]
[340299584,1729009852006,-154.015982,0.00029018,7]
[340299585,1729009852149,-430.041762,0.00029018,7]
[340299586,1729009852161,-430.041762,0.00029018,7]
[340299587,1729009852170,-187.535718,0.00029018,7]
[340299588,1729009852180,-187.535718,0.00029018,7]
[340299589,1729009852192,-172.094316,0.00029018,7]
[340299590,1729009852202,-172.094316,0.00029018,7]
[340299591,1729009852211,-334.927201,0.00029018,7]
[340299592,1729009852220,-334.927201,0.00029018,7]
[340299593,1729009852230,-153.063414,0.00029018,7]
[340299594,1729009852240,-151.0,0.00029018,7]
[340299595,1729009852249,-151.0,0.00029018,7]
[340299596,1729009852259,-151.0,0.00029018,7]
[340299597,1729009852268,-151.0,0.00029018,7]
[340299598,1729009852278,-360.515677,0.00029018,7]
[340299599,1729009852287,-360.515677,0.00029018,7]
[340299600,1729009852297,-230.465031,0.00029018,7]
[340299601,1729009852306,-230.465031,0.00029018,7]
[340299602,1729009852315,-151.0,0.00029018,7]
[340299603,1729009852325,-151.0,0.00029018,7]
[340299604,1729009852335,-151.0,0.00029018,7]
[340299605,1729009852349,-526.104729,0.00029018,7]
[340299606,1729009852359,-526.104729,0.00029018,7]
[340299607,1729009852368,-297.87782,0.00029018,7]
[340299608,1729009852378,-297.87782,0.00029018,7]
[340299609,1729009852389,-151.0,0.00029018,7]
[340299610,1729009852398,-1249.581355,0.00029018,7]
[340299611,1729009852408,-2107.876471,0.00029018,7]
[340299612,1729009852419,-2107.876471,0.00029018,7]
[340299613,1729009852428,-1249.581355,0.00029018,7]
[340299614,1729009852438,-601.864744,0.00029018,7]
[340299615,1729009852448,-601.864744,0.00029018,7]
[340299616,1729009852457,-601.864744,0.00029018,7]
[340299617,1729009852466,-601.864744,0.00029018,7]
[340299618,1729009852476,-2760.074245,0.00029018,7]
[340299619,1729009852486,-2760.074245,0.00029018,7]
[340299620,1729009852496,-279.72441,0.00029018,7]
[340299621,1729009852505,-279.72441,0.00029018,7]
[340299622,1729009852515,-279.72441,0.00029018,7]
[340299623,1729009852525,-279.72441,0.00029018,7]
[340299624,1729009852534,-2042.32632,0.00029018,7]
[340299625,1729009852544,-2042.32632,0.00029018,7]
[340299626,1729009852557,-177.450328,0.00029018,7]
[340299627,1729009852566,-177.450328,0.00029018,7]
[340299628,1729009852576,-177.450328,0.00029018,7]
[340299629,1729009852585,-177.450328,0.00029018,7]
[340299630,1729009852602,-151.0,0.00029018,7]
[340299631,1729009852613,-151.0,0.00029018,7]
[340299632,1729009852623,-2027.716214,0.00029018,7]
[340299633,1729009852634,-2027.716214,0.00029018,7]
[340299634,1729009852644,-151.0,0.00029018,7]
[340299635,1729009852654,-1608.210629,0.00029018,7]
[340299636,1729009852664,-2027.716214,0.00029018,7]
[340299637,1729009852674,-2027.716214,0.00029018,7]
[340299638,1729009852684,-1608.210629,0.00029018,7]
[340299639,1729009852694,-2285.202816,0.00029018,7]
[340299640,1729009852704,-2285.202816,0.00029018,7]
[340299641,1729009852714,-151.0,0.00029018,7]
[340299642,1729009852724,-2458.926106,0.00029018,7]
[340299643,1729009852734,-2458.926106,0.00029018,7]
[340299644,1729009852744,-2458.926106,0.00029018,7]
[340299645,1729009852754,-2458.926106,0.00029018,7]
[340299646,1729009852763,-385.508593,0.00029018,7]
[340299647,1729009852773,-385.508593,0.00029018,7]
[340299648,1729009852783,-251.755237,0.00029018,7]
[340299649,1729009852792,-385.508593,0.00029018,7]
[340299650,1729009852803,-385.508593,0.00029018,7]
[340299651,1729009852812,-1398.491753,0.00029018,7]
[340299652,1729009852822,-1398.491753,0.00029018,7]
[340299653,1729009852831,-1398.491753,0.00029018,7]
[340299654,1729009852841,-1398.491753,0.00029018,7]
[340299655,1729009852857,-151.0,0.00029018,7]
[340299656,1729009852867,-166.453614,0.00029018,7]
[340299657,1729009852877,-151.0,0.00029018,7]
[340299658,1729009852886,-166.453614,0.00029018,7]